bitfinex/quotes_BTCUSD_20220111
["timestamp","ask_amount","ask_price","bid_price","bid_amount"]
[1641919721882,0.00046947,42682.0,42681.0,0.3010246]
[1641919722084,0.1,42685.0,42681.0,0.3010246]
[1641919722326,0.00046948,42683.0,42681.0,0.3010246]
[1641919723125,0.00046948,42683.0,42680.0,0.76074283]
[1641919723326,0.012,42685.0,42680.0,0.76074283]
[1641919723526,0.37290248,42684.0,42680.0,0.76074283]
[1641919723729,0.37290248,42684.0,42681.0,0.03782446]
[1641919723730,0.43148948,42684.0,42681.0,0.03782446]
[1641919723926,0.06111,42683.0,42681.0,0.03782446]
[1641919724527,0.06111,42683.0,42682.0,0.03440321]
[1641919724733,0.07311,42683.0,42680.0,1.22747038]
[1641919724929,0.31111,42681.0,42680.0,1.22747038]
[1641919725129,0.06111,42681.0,42680.0,1.22747038]
[1641919725629,0.06111,42681.0,42680.0,1.53233416]
[1641919725828,0.012,42683.0,42681.0,0.06111]
[1641919725829,0.01246947,42683.0,42681.0,0.06111]
[1641919726077,0.00046947,42683.0,42681.0,0.06111]
[1641919726678,0.01146947,42683.0,42681.0,0.06111]
[1641919726879,0.117172,42689.0,42682.0,0.46657229]
[1641919727079,0.24185808,42700.0,42684.0,0.06111]
[1641919727080,1.17688608,42700.0,42684.0,0.06111]
[1641919727282,0.00122106,42699.0,42689.0,0.41575881]
[1641919727480,0.00122106,42699.0,42689.0,0.72993555]
[1641919727978,0.00122106,42699.0,42689.0,0.97415286]
[1641919728179,0.058575,42693.0,42689.0,0.97415286]
[1641919728379,0.00046953,42692.0,42689.0,0.97415286]
[1641919728780,0.00122106,42699.0,42689.0,1.43756486]
[1641919728980,0.00748608,42700.0,42692.0,0.00120624]
[1641919729182,0.28,42703.0,42697.0,0.00126174]
[1641919729183,0.255,42703.0,42697.0,0.00126174]
[1641919729380,0.59375876,42710.0,42699.0,0.06111]
[1641919729581,0.59360876,42709.0,42701.0,0.06111]
[1641919729830,0.59360876,42709.0,42708.0,0.06111]
[1641919730028,0.96604176,42709.0,42708.0,0.15411]
[1641919730430,0.59360876,42709.0,42708.0,0.15411]
[1641919730829,0.00015,42710.0,42708.0,0.15411]
[1641919731128,0.00015,42710.0,42709.0,0.57334432]
[1641919731329,0.00015,42710.0,42709.0,0.61634432]
[1641919731529,0.25015,42710.0,42709.0,0.61634432]
[1641919731930,0.25015,42710.0,42709.0,0.35113116]
[1641919732232,0.25015,42710.0,42709.0,0.10411]
[1641919732435,0.622583,42710.0,42709.0,0.10411]
[1641919732731,1.272583,42710.0,42709.0,0.10411]
[1641919733605,1.72384494,42710.0,42709.0,0.10411]
[1641919733904,1.62384494,42710.0,42709.0,0.10411]
[1641919734108,1.72384494,42710.0,42709.0,0.10411]
[1641919734305,1.72384494,42710.0,42709.0,0.06111]
[1641919734703,1.72984494,42710.0,42709.0,0.06111]
[1641919735504,0.05857,42704.0,42696.0,0.00122054]
[1641919735706,0.05857,42704.0,42695.0,0.04517222]
[1641919736106,0.05857,42704.0,42698.0,0.31122429]
[1641919736307,0.05857,42704.0,42699.0,0.04949846]
[1641919736507,0.05857,42704.0,42696.0,0.03390492]
[1641919736706,0.05857,42704.0,42694.0,0.40600311]
[1641919736707,0.058567,42700.0,42694.0,0.043]
[1641919736905,0.058567,42700.0,42696.0,0.03618852]
[1641919737106,0.058567,42700.0,42696.0,0.04879646]
[1641919737325,0.00046612,42703.0,42698.0,0.03373613]
[1641919737527,0.00046612,42703.0,42699.0,0.08644203]
[1641919737730,0.007,42704.0,42700.0,0.043]
[1641919737925,0.058561,42702.0,42700.0,0.043]
[1641919738126,0.00046612,42703.0,42700.0,0.3377445]
[1641919738326,0.00046612,42703.0,42700.0,0.043]
[1641919738726,0.00646612,42703.0,42700.0,0.043]
[1641919738929,0.430994,42702.0,42697.0,0.05]
[1641919739127,0.430994,42702.0,42695.0,0.04816121]
[1641919739128,1.006515,42700.0,42695.0,0.04816121]
[1641919739427,1.006515,42700.0,42696.0,0.04786883]
[1641919740228,1.0069811,42700.0,42696.0,0.04786883]
[1641919740625,1.0069811,42700.0,42697.0,0.043]
[1641919740826,1.0129811,42700.0,42698.0,0.08396936]
[1641919741078,1.0129811,42700.0,42699.0,0.04260253]
[1641919741281,1.071079,42700.0,42699.0,0.04260253]
[1641919741682,1.443512,42700.0,42699.0,0.04260253]
[1641919741881,1.484948,42700.0,42696.0,0.03927301]
[1641919742080,1.484948,42700.0,42685.0,0.06111]
[1641919742081,0.743916,42699.0,42683.0,1.01877157]
[1641919742281,0.05796609,42698.0,42689.0,0.00015]
[1641919742486,0.05796609,42698.0,42683.0,0.981]
[1641919742487,0.00063878,42696.0,42686.0,0.0427723]
[1641919742681,0.00063878,42696.0,42689.0,0.04023103]
[1641919742682,0.372433,42695.0,42689.0,0.04023103]
[1641919742884,0.00063878,42696.0,42688.0,0.03338648]
[1641919743081,0.00063878,42696.0,42690.0,0.00015]
[1641919743280,0.00063878,42696.0,42689.0,0.00015]
[1641919743281,0.372433,42695.0,42689.0,0.00015]
[1641919743481,0.372433,42695.0,42687.0,0.00015]
[1641919743781,0.058583,42693.0,42687.0,0.00015]
[1641919744181,0.372433,42692.0,42687.0,0.00015]
[1641919744381,0.37579699,42693.0,42683.0,0.50140546]
[1641919744583,0.1,42692.0,42684.0,0.00015]
[1641919744827,0.107,42692.0,42686.0,0.3843798]
[1641919745026,0.107,42692.0,42687.0,0.04533187]
[1641919745227,0.058581,42690.0,42687.0,0.00015]
[1641919745429,0.058581,42690.0,42688.0,0.00015]
[1641919745727,1.172433,42689.0,42681.0,0.00015]
[1641919745926,0.8,42689.0,42681.0,0.00015]
[1641919746127,0.9,42689.0,42683.0,0.25469523]
[1641919746327,0.058583,42686.0,42681.0,0.00015]
[1641919746525,0.058583,42686.0,42684.0,0.00015]
[1641919747328,0.058583,42686.0,42685.0,0.32330782]
[1641919747528,0.008,42689.0,42686.0,0.04370867]
[1641919747931,0.008,42689.0,42687.0,0.00015]
[1641919748129,0.117162,42692.0,42687.0,0.03642479]
[1641919748330,0.372433,42691.0,42687.0,0.03642479]
[1641919748575,0.372433,42691.0,42688.0,0.00015]
[1641919748774,0.381433,42691.0,42688.0,0.03675581]
[1641919749174,0.381433,42691.0,42689.0,0.00015]
[1641919749775,0.381433,42691.0,42688.0,0.00015]
[1641919750077,0.372433,42691.0,42688.0,0.00015]
[1641919750276,0.431009,42691.0,42688.0,0.00015]
[1641919750479,0.531009,42691.0,42688.0,0.00015]
[1641919750678,0.00831862,42687.0,42686.0,0.27766604]
[1641919750875,0.00831862,42687.0,42686.0,0.65135874]
[1641919751075,0.00831862,42687.0,42686.0,1.11314204]
[1641919751575,0.00831862,42687.0,42686.0,1.35819947]
[1641919751775,0.007,42691.0,42686.0,1.35819947]
[1641919751976,0.007,42691.0,42687.0,0.363471]
[1641919752228,0.000466,42694.0,42687.0,0.363471]
[1641919752427,0.000466,42694.0,42686.0,0.57398317]
[1641919752628,0.059038,42694.0,42686.0,0.57398317]
[1641919752827,0.067038,42694.0,42686.0,0.57398317]
[1641919753227,0.066572,42694.0,42686.0,0.57398317]
[1641919753628,0.06703802,42694.0,42686.0,0.57398317]
[1641919753827,0.06703802,42694.0,42686.0,0.56898317]
[1641919754029,0.06703802,42694.0,42686.0,0.32392574]
[1641919754229,0.06703802,42694.0,42682.0,0.00122743]
[1641919754429,0.36887241,42693.0,42682.0,0.00122743]
[1641919754627,0.058584,42688.0,42682.0,0.00122743]
[1641919754829,0.058584,42688.0,42682.0,0.001]
[1641919756081,0.058584,42688.0,42686.0,0.24080908]
[1641919756280,0.058578,42690.0,42686.0,0.29080908]
[1641919756677,0.058578,42690.0,42686.0,0.34080908]
[1641919756880,0.009,42690.0,42689.0,0.0012016]
[1641919757079,0.009,42690.0,42689.0,0.3646446]
[1641919757280,0.009,42690.0,42689.0,0.4146446]
[1641919757481,0.06015,42700.0,42689.0,0.413443]
[1641919757681,0.06015,42700.0,42686.0,0.29080908]
[1641919758383,0.058575,42695.0,42686.0,0.29080908]
[1641919759925,0.00052119,42696.0,42687.0,0.372433]
[1641919760127,0.00052119,42696.0,42690.0,0.00123635]
[1641919760327,0.06015,42700.0,42697.0,0.42881411]
[1641919760528,0.06015,42700.0,42699.0,0.32969545]
[1641919760726,0.06015,42700.0,42697.0,0.05]
[1641919760929,0.06015,42700.0,42695.0,0.00127932]
[1641919760930,0.06815,42700.0,42699.0,0.25882063]
[1641919761127,0.06815,42700.0,42696.0,0.4421068]
[1641919761327,0.06815,42700.0,42696.0,0.4921068]
[1641919761527,0.06815,42700.0,42696.0,0.1]
[1641919761728,0.372433,42699.0,42696.0,0.05]
[1641919761928,0.372433,42699.0,42691.0,0.043]
[1641919762128,0.06015,42700.0,42695.0,0.27648634]
[1641919762528,0.118715,42700.0,42695.0,0.05]
[1641919763029,0.118715,42700.0,42691.0,0.043]
[1641919763030,0.128715,42700.0,42691.0,0.043]
[1641919763230,0.128715,42700.0,42693.0,0.26568452]
[1641919763492,0.128715,42700.0,42694.0,0.05]
[1641919763880,0.07015,42700.0,42694.0,0.05127733]
[1641919764082,0.06015,42700.0,42694.0,0.00127733]
[1641919764279,0.00045879,42699.0,42695.0,0.372433]
[1641919764481,0.00045879,42699.0,42697.0,0.28517053]
[1641919764682,0.00045879,42699.0,42696.0,0.33539599]
[1641919764882,0.00945879,42699.0,42696.0,0.33539599]
[1641919765283,0.009,42699.0,42696.0,0.33539599]
[1641919765483,0.009,42699.0,42697.0,0.422433]
[1641919765987,0.009,42699.0,42697.0,0.05]
[1641919766185,0.06060879,42700.0,42696.0,0.62990421]
[1641919766885,0.06960879,42700.0,42696.0,0.62990421]
[1641919767084,0.06960879,42700.0,42696.0,0.29450822]
[1641919767735,0.06915,42700.0,42696.0,0.29450822]
[1641919767935,0.06960879,42700.0,42696.0,0.29450822]
[1641919768134,0.06060879,42700.0,42696.0,0.59063563]
[1641919768539,0.05760639,42700.0,42696.0,0.59063563]
[1641919768736,0.05760639,42700.0,42696.0,0.58563563]
[1641919768936,0.0651476,42700.0,42696.0,0.58563563]
[1641919769138,0.06560639,42700.0,42696.0,0.58563563]
[1641919770137,0.0571476,42700.0,42696.0,0.58563563]
[1641919770339,0.05760639,42700.0,42696.0,0.28950822]
[1641919770539,0.05760639,42700.0,42689.0,0.0008447]
[1641919770839,0.00127711,42693.0,42689.0,0.0008447]
[1641919771382,0.00119111,42693.0,42685.0,0.28500818]
[1641919771597,0.00119111,42693.0,42689.0,0.00084466]
[1641919772183,0.058582,42691.0,42689.0,0.00084466]
[1641919772583,1.222433,42690.0,42680.0,0.03458474]
[1641919772785,1.222433,42690.0,42688.0,0.00084467]
[1641919772984,2.41294457,42689.0,42688.0,0.00084467]
[1641919773186,2.41417226,42689.0,42688.0,0.00084467]
[1641919773385,2.22270192,42689.0,42688.0,0.00084467]
[1641919773591,1.78225269,42689.0,42688.0,0.00084467]
[1641919773784,1.78225269,42689.0,42678.0,0.38317302]
[1641919773984,0.117172,42688.0,42686.0,0.00084469]
[1641919774287,0.372433,42687.0,42686.0,0.00084469]
[1641919774485,0.1,42695.0,42686.0,0.29694685]
[1641919774733,0.00705861,42697.0,42686.0,0.29694685]
[1641919774734,0.372433,42694.0,42686.0,0.29694685]
[1641919774929,0.008,42687.0,42686.0,0.34610216]
[1641919775129,0.008,42687.0,42686.0,0.71853516]
[1641919775329,0.008,42687.0,42686.0,0.96222954]
[1641919775932,0.008,42687.0,42686.0,0.422433]
[1641919776136,0.3,42687.0,42686.0,0.422433]
[1641919776332,0.3,42687.0,42686.0,0.05]
[1641919776732,0.3,42687.0,42684.0,0.00084472]
[1641919776932,0.3,42687.0,42684.0,0.04558534]
[1641919776933,0.307,42687.0,42684.0,0.04558534]
[1641919777135,0.307,42687.0,42686.0,0.03801477]
[1641919777333,0.007,42687.0,42686.0,0.08801477]
[1641919777534,0.007,42687.0,42686.0,0.05]
[1641919778137,0.117155,42695.0,42686.0,0.05]
[1641919778338,0.00126383,42691.0,42683.0,0.00084473]
[1641919778583,0.00126383,42691.0,42680.0,0.00015]
[1641919778787,0.00126383,42691.0,42688.0,0.00084467]
[1641919778982,0.372433,42690.0,42688.0,0.00084467]
[1641919779183,0.431016,42690.0,42688.0,0.00084467]
[1641919779383,0.531016,42690.0,42688.0,0.00084467]
[1641919779782,0.531016,42690.0,42680.0,0.37876331]
[1641919779985,0.158583,42690.0,42687.0,0.00084469]
[1641919780183,0.372433,42689.0,42687.0,0.00084469]
[1641919780887,0.383433,42689.0,42682.0,0.05]
[1641919781085,0.058587,42686.0,42680.0,0.00015]
[1641919782330,0.058587,42686.0,42681.0,0.00084476]
[1641919783030,0.077587,42686.0,42681.0,0.00084476]
[1641919783430,0.372433,42685.0,42680.0,0.00015]
[1641919783633,0.058589,42683.0,42681.0,0.00084476]
[1641919784632,0.058589,42683.0,42677.0,0.00015]
[1641919784831,0.117181,42685.0,42677.0,0.00015]
[1641919784832,0.10126383,42691.0,42680.0,0.00084477]
[1641919785030,0.036,42683.0,42680.0,0.00084477]
[1641919785231,0.036,42683.0,42681.0,0.372433]
[1641919785432,0.036,42683.0,42681.0,0.422433]
[1641919785632,0.036,42683.0,42682.0,0.2405819]
[1641919785830,0.11716,42693.0,42682.0,0.2405819]
[1641919785831,0.11837755,42693.0,42683.0,0.372433]
[1641919786083,0.11837755,42693.0,42682.0,0.3205819]
[1641919786084,0.372433,42692.0,42682.0,0.3705819]
[1641919786279,0.058579,42689.0,42682.0,0.13]
[1641919786483,0.372433,42688.0,42682.0,0.08]
[1641919786879,0.018,42689.0,42680.0,0.00015]
[1641919787081,0.00128114,42688.0,42683.0,0.00084474]
[1641919787281,0.058586,42686.0,42683.0,0.00084474]
[1641919787482,0.372433,42685.0,42683.0,0.00084474]
[1641919787883,0.00122669,42684.0,42683.0,0.00084474]
[1641919788083,1.62365969,42684.0,42677.0,0.00015]
[1641919788282,1.167195,42682.0,42681.0,0.00084476]
[1641919788583,1.539628,42682.0,42681.0,0.00084476]
[1641919788782,0.372433,42681.0,42673.0,0.04434781]
[1641919788984,0.009,42682.0,42672.0,0.04669932]
[1641919789183,0.009,42682.0,42673.0,0.04086463]
[1641919789482,0.1172,42678.0,42673.0,0.31647737]
[1641919789930,0.1172,42678.0,42673.0,0.03965792]
[1641919790135,0.1172,42678.0,42672.0,0.03491923]
[1641919790332,0.1172,42678.0,42673.0,0.03703538]
[1641919790532,0.1172,42678.0,42671.0,0.47545188]
[1641919790533,0.11719,42682.0,42672.0,0.03529818]
[1641919790832,0.46182857,42683.0,42672.0,0.03529818]
[1641919790833,0.00032178,42677.0,42672.0,0.33687157]
[1641919791031,0.00032178,42677.0,42673.0,0.0474064]
[1641919791233,0.00032178,42677.0,42673.0,0.03595142]
[1641919791533,0.058601,42675.0,42672.0,0.33687157]
[1641919791730,0.058601,42675.0,42672.0,0.04049427]
[1641919791932,0.058601,42675.0,42673.0,0.04649474]
[1641919792132,0.058601,42675.0,42670.0,0.04509835]
[1641919792330,0.00032178,42677.0,42671.0,0.372433]
[1641919792530,0.00032178,42677.0,42670.0,0.04524835]
[1641919792735,0.00032178,42677.0,42674.0,0.24432798]
[1641919792932,0.009,42677.0,42674.0,0.24432798]
[1641919793134,0.00949026,42677.0,42671.0,0.00084488]
[1641919793333,0.00949026,42677.0,42672.0,0.03624979]
[1641919793980,0.00949026,42677.0,42675.0,0.26158731]
[1641919794181,0.058595,42678.0,42671.0,0.03776298]
[1641919794378,0.00049028,42677.0,42672.0,0.00084487]
[1641919794579,0.058597,42676.0,42672.0,0.0976868]
[1641919795078,0.013,42677.0,42673.0,0.372433]
[1641919795281,0.013,42677.0,42671.0,0.03592159]
[1641919795679,0.058597,42676.0,42671.0,0.03592159]
[1641919796078,0.058597,42676.0,42672.0,0.33463393]
[1641919796279,0.058597,42676.0,42671.0,0.27985519]
[1641919796683,0.058597,42676.0,42671.0,0.28285649]
[1641919796879,0.069597,42676.0,42671.0,0.28285649]
[1641919797081,0.011,42676.0,42671.0,0.28285649]
[1641919797535,0.011,42676.0,42672.0,0.372433]
[1641919797741,0.011,42676.0,42671.0,0.2439336]
[1641919797936,0.011,42676.0,42671.0,0.24477848]
[1641919798138,0.00048651,42679.0,42671.0,0.54537992]
[1641919798336,0.058597,42676.0,42671.0,0.24477848]
[1641919798538,0.053597,42676.0,42671.0,0.24477848]
[1641919798939,0.065597,42676.0,42671.0,0.2939336]
[1641919799139,0.065597,42676.0,42671.0,0.29477848]
[1641919799540,0.065597,42676.0,42671.0,0.05084488]
[1641919799941,0.065597,42676.0,42671.0,0.3064611]
[1641919800140,0.065597,42676.0,42669.0,0.03515]
[1641919800339,0.065597,42676.0,42671.0,0.00084488]
[1641919800839,0.053597,42676.0,42671.0,0.00084488]
[1641919801082,0.060597,42676.0,42671.0,0.00084488]
[1641919801285,0.00015,42680.0,42671.0,0.40063752]
[1641919801484,0.00015,42680.0,42672.0,0.04463587]
[1641919801683,0.00015,42680.0,42673.0,0.73489747]
[1641919801884,0.00015,42680.0,42679.0,0.26935894]
[1641919802283,0.00015,42680.0,42679.0,0.63301894]
[1641919802483,0.00015,42680.0,42679.0,0.68301894]
[1641919802783,0.00015,42680.0,42674.0,0.04423402]
[1641919802983,0.03915,42680.0,42674.0,0.00123402]
[1641919803182,0.03915,42680.0,42675.0,0.43141565]
[1641919803382,0.03915,42680.0,42673.0,0.28286907]
[1641919803581,0.03915,42680.0,42670.0,0.043]
[1641919803985,2.01989843,42677.0,42670.0,0.39749853]
[1641919804181,2.01989843,42677.0,42669.0,0.28473765]
[1641919804382,2.01989843,42677.0,42669.0,0.73344291]
[1641919805034,2.03089843,42677.0,42669.0,0.50170526]
[1641919805237,0.00049297,42676.0,42669.0,0.00384492]
[1641919805438,0.00049297,42676.0,42669.0,0.05384492]
[1641919805836,0.00049297,42676.0,42669.0,0.00384492]
[1641919806236,2.01989843,42677.0,42668.0,0.0213031]
[1641919806436,0.00049296,42676.0,42669.0,0.00084492]
[1641919806835,0.00049296,42676.0,42669.0,0.30878407]
[1641919807036,0.03449296,42676.0,42669.0,0.05184492]
[1641919807436,0.034,42676.0,42669.0,0.051]
[1641919807635,0.03449296,42676.0,42669.0,0.05184492]
[1641919807840,0.03449296,42676.0,42670.0,0.2409846]
[1641919808037,0.03449296,42676.0,42671.0,0.63771443]
[1641919808236,0.00049296,42676.0,42672.0,0.43638036]
[1641919808494,0.00015,42680.0,42673.0,0.363716]
[1641919808691,0.00015,42680.0,42670.0,0.2409846]
[1641919808692,0.00049298,42676.0,42670.0,0.2409846]
[1641919808890,0.00049298,42676.0,42671.0,0.36373]
[1641919809090,0.00049298,42676.0,42671.0,0.41373]
[1641919809694,0.03315,42680.0,42672.0,0.043]
[1641919809894,0.03315,42680.0,42676.0,0.45743953]
[1641919810092,0.00015,42680.0,42676.0,0.45743953]
[1641919810292,0.00015,42680.0,42672.0,0.043]
[1641919811092,0.058599,42677.0,42672.0,0.043]
[1641919811695,0.000493,42678.0,42673.0,0.03782529]
[1641919811892,0.000493,42678.0,42674.0,0.65304608]
[1641919812093,0.03415,42680.0,42675.0,0.456696]
[1641919812339,0.000493,42678.0,42675.0,0.49764168]
[1641919812543,0.000493,42678.0,42677.0,0.44512133]
[1641919812740,0.000493,42678.0,42677.0,0.406676]
[1641919812942,0.005493,42678.0,42677.0,0.043]
[1641919813340,0.005,42678.0,42677.0,0.043]
[1641919813742,0.655,42678.0,42677.0,0.38552793]
[1641919814341,0.65,42678.0,42677.0,0.38552793]
[1641919814942,0.657,42678.0,42677.0,0.38552793]
[1641919815995,0.657,42678.0,42677.0,0.043]
[1641919816186,0.65,42678.0,42677.0,0.043]
[1641919816988,0.658,42678.0,42677.0,0.043]
[1641919817586,1.058,42678.0,42677.0,0.043]
[1641919817989,0.008,42678.0,42677.0,0.043]
[1641919818188,0.00595047,42693.0,42680.0,1.25]
[1641919818391,0.234344,42705.0,42677.0,0.043]
[1641919818392,0.00122485,42718.0,42685.0,0.1]
[1641919818591,0.00122485,42718.0,42704.0,0.5]
[1641919818592,0.5,42717.0,42704.0,0.5]
[1641919818791,0.98855344,42718.0,42704.0,0.5]
[1641919818792,0.98855344,42718.0,42705.0,0.043]
[1641919818989,0.98855344,42718.0,42707.0,0.72826386]
[1641919818990,0.009381,42715.0,42707.0,0.72826386]
[1641919819192,0.009381,42715.0,42714.0,0.5377]
[1641919819390,0.99555344,42718.0,42717.0,0.00126085]
[1641919819593,0.99555344,42718.0,42717.0,0.58196085]
[1641919819842,0.89565344,42718.0,42717.0,1.53196085]
[1641919820041,0.002,42727.0,42717.0,1.53196085]
[1641919820042,0.002,42721.0,42719.0,0.25]
[1641919820242,0.002,42721.0,42720.0,0.48752642]
[1641919820449,0.001,42727.0,42724.0,0.363207]
[1641919820643,1.40003706,42729.0,42728.0,0.00121831]
[1641919820644,0.70823706,42729.0,42728.0,0.00121831]
[1641919820845,0.70823706,42729.0,42728.0,0.37603831]
[1641919821041,0.70823706,42729.0,42728.0,0.67616753]
[1641919821243,0.70823706,42729.0,42728.0,0.37616753]
[1641919821441,0.003,42731.0,42728.0,0.71396309]
[1641919821643,0.003,42731.0,42729.0,0.363157]
[1641919821946,0.00132267,42732.0,42731.0,1.213134]
[1641919822143,0.00132267,42732.0,42731.0,0.706134]
[1641919822542,2.267e-05,42732.0,42731.0,1.17605537]
[1641919822744,2.267e-05,42732.0,42731.0,0.87605537]
[1641919823243,2.267e-05,42732.0,42731.0,1.38305537]
[1641919823510,0.60002267,42732.0,42731.0,0.55127873]
[1641919823806,0.60002267,42732.0,42731.0,0.55]
[1641919824005,0.97250767,42732.0,42731.0,0.55]
[1641919824207,0.97250767,42732.0,42731.0,0.543]
[1641919824605,0.97250767,42732.0,42731.0,0.5]
[1641919825009,1.00050767,42732.0,42731.0,0.5]
[1641919825611,1.00050767,42732.0,42731.0,0.5469]
[1641919826207,1.00050767,42732.0,42731.0,0.0469]
[1641919826407,1.02250767,42732.0,42731.0,0.0469]
[1641919826607,1.32250767,42732.0,42731.0,0.0469]
[1641919827008,1.44656667,42732.0,42731.0,0.0469]
[1641919827235,1.32950767,42732.0,42725.0,0.54815072]
[1641919827436,0.372485,42731.0,42725.0,0.54815072]
[1641919827838,0.90702267,42732.0,42725.0,0.54815072]
[1641919828038,0.00702267,42732.0,42725.0,0.54815072]
[1641919828243,0.00702267,42732.0,42730.0,0.00125488]
[1641919828443,0.00702267,42732.0,42731.0,0.363136]
[1641919828444,2.267e-05,42732.0,42731.0,0.363136]
[1641919828939,2.267e-05,42732.0,42731.0,0.69119721]
[1641919829140,0.01402267,42732.0,42731.0,1.03117604]
[1641919830139,0.01402267,42732.0,42731.0,1.49198832]
[1641919830340,2.267e-05,42732.0,42731.0,1.11439656]
[1641919830539,2.267e-05,42732.0,42731.0,1.56565798]
[1641919830740,2.267e-05,42732.0,42731.0,1.53054344]
[1641919830999,0.00155275,42740.0,42739.0,0.00128123]
[1641919831191,0.00155275,42740.0,42739.0,0.83638143]
[1641919831392,0.08,42759.0,42740.0,0.4]
[1641919831592,0.08,42759.0,42741.0,0.363026]
[1641919831593,0.078638,42759.0,42741.0,0.363026]
[1641919831792,0.00115,42760.0,42758.0,0.00124305]
[1641919831994,0.00115,42760.0,42758.0,0.00090923]
[1641919832393,0.00115,42760.0,42758.0,0.00121634]
[1641919832596,0.001,42763.0,42760.0,0.37897018]
[1641919832795,0.00027804,42761.0,42760.0,0.08559]
[1641919832992,0.00027804,42761.0,42760.0,0.13249]
[1641919833394,0.00027804,42761.0,42760.0,0.495343]
[1641919833797,0.04,42763.0,42760.0,0.495343]
[1641919833998,0.04,42763.0,42761.0,0.80430174]
[1641919833999,0.04027804,42763.0,42761.0,0.80430174]
[1641919834194,0.04027804,42763.0,42762.0,0.0469]
[1641919834397,0.70127804,42763.0,42762.0,0.409719]
[1641919834595,0.70127804,42763.0,42762.0,0.0469]
[1641919834841,0.00127804,42763.0,42762.0,0.0469]
[1641919835038,0.001,42763.0,42762.0,0.409719]
[1641919835240,0.001,42763.0,42762.0,0.8013424]
[1641919835442,0.001,42763.0,42762.0,0.8662924]
[1641919835841,0.00015,42770.0,42762.0,0.8662924]
[1641919836044,0.00015,42770.0,42769.0,0.00122301]
[1641919836247,0.00015,42770.0,42769.0,0.82562978]
[1641919836643,0.00015,42770.0,42769.0,0.36397201]
[1641919836844,0.00015,42770.0,42769.0,0.00122301]
[1641919837043,0.00015,42770.0,42769.0,0.09516301]
[1641919837247,0.00236236,42788.0,42773.0,0.75]
[1641919837448,0.59628103,42797.0,42780.0,0.04681695]
[1641919837644,0.06111,42791.0,42780.0,0.12122556]
[1641919837845,0.06111,42791.0,42789.0,0.00120613]
[1641919838044,0.06111,42791.0,42790.0,0.0469]
[1641919838498,0.00015,42800.0,42790.0,0.04811112]
[1641919838693,0.00015,42800.0,42799.0,0.00127579]
[1641919838900,0.00015,42800.0,42799.0,0.16928579]
[1641919839092,0.00015,42800.0,42799.0,0.21618579]
[1641919839291,0.00015,42800.0,42799.0,0.61618579]
[1641919839492,0.00015,42800.0,42799.0,0.21118579]
[1641919840096,9e-05,42800.0,42799.0,0.18934448]
[1641919840493,0.00015914,42806.0,42800.0,1.27674912]
[1641919840694,0.00187627,42808.0,42801.0,0.0469]
[1641919840892,0.39623222,42819.0,42807.0,0.00126303]
[1641919841092,0.00015,42820.0,42807.0,0.04816303]
[1641919841293,0.48098178,42817.0,42807.0,0.53636603]
[1641919841495,0.39623222,42816.0,42807.0,0.53636603]
[1641919842093,0.00015,42820.0,42807.0,0.53636603]
[1641919842537,0.27198866,42812.0,42807.0,0.53603167]
[1641919843038,0.27198866,42812.0,42807.0,0.0469]
[1641919843639,0.27198866,42812.0,42807.0,0.03682522]
[1641919843939,0.4187356,42809.0,42807.0,0.03682522]
[1641919844143,0.00129839,42807.0,42800.0,0.5]
[1641919844339,0.00122162,42803.0,42801.0,0.0469]
[1641919844540,0.00122162,42803.0,42795.0,0.5]
[1641919844939,0.37229,42802.0,42795.0,0.5]
[1641919845139,0.00122162,42803.0,42794.0,0.42758203]
[1641919845740,0.78685943,42802.0,42794.0,0.42758203]
[1641919845993,2.07228105,42801.0,42794.0,0.42758203]
[1641919846592,0.75988416,42800.0,42794.0,0.42758203]
[1641919846792,0.33226648,42796.0,42794.0,0.42758203]
[1641919846988,0.38759416,42800.0,42797.0,0.42702815]
[1641919847189,0.37229,42799.0,42794.0,0.42758203]
[1641919847390,0.00046557,42804.0,42794.0,0.42758203]
[1641919847992,0.40870127,42797.0,42789.0,0.00015]
[1641919848194,0.92007732,42796.0,42789.0,0.00015]
[1641919848394,0.27024256,42795.0,42789.0,0.00015]
[1641919848593,0.27024256,42795.0,42781.0,0.00015]
[1641919848594,0.41919,42794.0,42781.0,0.00015]
[1641919848791,0.0469,42794.0,42781.0,0.00015]
[1641919848992,0.40746055,42790.0,42781.0,0.00015]
[1641919849192,0.40746055,42790.0,42781.0,0.01215]
[1641919849193,0.0469,42789.0,42781.0,0.01215]
[1641919849395,0.30797326,42784.0,42781.0,0.01215]
[1641919849594,0.30797326,42784.0,42782.0,0.00015]
[1641919849841,1.37229,42783.0,42782.0,0.00015]
[1641919850239,2.21277022,42783.0,42782.0,0.00015]
[1641919850439,1.80991615,42783.0,42782.0,0.00015]
[1641919850841,0.37229,42783.0,42774.0,0.0003]
[1641919851043,0.0469,42784.0,42774.0,0.0003]
[1641919851241,0.007,42783.0,42774.0,0.0003]
[1641919851842,0.33376725,42780.0,42774.0,0.0003]
[1641919852244,0.41919,42779.0,42773.0,0.0003]
[1641919852443,0.41919,42779.0,42767.0,0.00045]
[1641919852744,0.00122366,42778.0,42767.0,0.00045]
[1641919852944,0.45696632,42775.0,42767.0,0.00045]
[1641919853143,0.0469,42774.0,42767.0,0.01845]
[1641919853597,0.0469,42774.0,42768.0,0.00045]
[1641919854896,0.0469,42774.0,42768.0,0.0003]
[1641919855096,0.3,42770.0,42767.0,0.5]
[1641919855498,0.3,42770.0,42768.0,0.00045]
[1641919856298,1.47229,42769.0,42768.0,0.00045]
[1641919856700,1.51919,42769.0,42768.0,0.00045]
[1641919856898,1.93873416,42769.0,42768.0,0.00045]
[1641919857099,1.94673416,42769.0,42768.0,0.00045]
[1641919858137,2.09673416,42769.0,42768.0,0.00045]
[1641919858540,2.13873416,42769.0,42768.0,0.00045]
[1641919858737,2.13873416,42769.0,42763.0,0.00045]
[1641919858738,1.56919,42769.0,42763.0,0.00045]
[1641919858941,0.47767,42769.0,42763.0,0.00045]
[1641919859138,0.11238,42769.0,42763.0,0.00045]
[1641919860139,0.48835881,42766.0,42763.0,0.00045]